Workbook

Sheet Tab Horizontal RA
S2: VIGENCIA 1° DE ENERO DE 2018
D3: SECRETARÍA EJECUTIVA
D4: DIRECCIÓN EJECUTIVA DE ADMINISTRACIÓN
D5: DIRECCIÓN DE PERSONAL | S5: Percepciones Ordinarias Mensuales en Montos Brutos
D6: TABULADOR PARA PUESTOS DE LA RAMA ADMINISTRATIVA
A8: GRUPO | B8: GRADO | C8: Sueldo Base | D8: Compensación Garantizada | E8: Percepción Ordinaria | G8: Sueldo Base | H8: Compensación Garantizada | I8: Percepción Ordinaria | K8: Sueldo Base | L8: Compensación Garantizada | M8: Percepción Ordinaria | O8: Sueldo Base | P8: Compensación Garantizada | Q8: Percepción Ordinaria | S8: Sueldo Base | T8: Compensación Garantizada | U8: Percepción Ordinaria
C9: SERIE 1 | G9: SERIE 2 | K9: SERIE 3 | O9: SERIE 4 | S9: SERIE 5
A10: V | B10: C | C10: 49525 | D10: 211611 | E10: 261136 | G10: 49034 | H10: 213600 | I10: 262634
B11: B | C11: 49525 | D11: 203260 | E11: 252785 | G11: 49525 | H11: 205348 | I11: 254873 | K11: 49525 | L11: 207435 | M11: 256960 | O11: 49525 | P11: 209523 | Q11: 259048 | S11: 49525 | T11: 211611 | U11: 261136
B12: A | C12: 39618 | D12: 207720 | E12: 247338 | G12: 49721 | H12: 197777 | I12: 247498 | K12: 49525 | L12: 199085 | M12: 248610 | O12: 49525 | P12: 201172 | Q12: 250697 | S12: 49525 | T12: 203260 | U12: 252785
A13: U | B13: C | C13: 40791 | D13: 205168 | E13: 245959 | G13: 40434 | H13: 205531 | I13: 245965 | K13: 40085 | L13: 205896 | M13: 245981 | O13: 39741 | P13: 206244 | Q13: 245985 | S13: 39618 | T13: 207720 | U13: 247338
B14: B | C14: 41522 | D14: 199924 | E14: 241446 | G14: 41522 | H14: 202472 | I14: 243994 | K14: 41522 | L14: 204420 | M14: 245942 | O14: 41154 | P14: 204795 | Q14: 245949 | S14: 40791 | T14: 205168 | U14: 245959
B15: A | C15: 34332 | D15: 205158 | E15: 239490 | G15: 34332 | H15: 206666 | I15: 240998 | K15: 34332 | L15: 206848 | M15: 241180 | O15: 34332 | P15: 207016 | Q15: 241348 | S15: 41522 | T15: 199924 | U15: 241446
A16: T | B16: C | C16: 31086 | D16: 197868 | E16: 228954 | G16: 31086 | H16: 201300 | I16: 232386 | K16: 31086 | L16: 207044 | M16: 238130 | O16: 31086 | P16: 207713 | Q16: 238799 | S16: 34332 | T16: 205158 | U16: 239490
B17: B | C17: 31086 | D17: 186253 | E17: 217339 | G17: 31086 | H17: 188959 | I17: 220045 | K17: 31086 | L17: 191150 | M17: 222236 | O17: 31086 | P17: 194483 | Q17: 225569 | S17: 31086 | T17: 197868 | U17: 228954
B18: A | C18: 27028 | D18: 172944 | E18: 199972 | G18: 27028 | H18: 176286 | I18: 203314 | K18: 27028 | L18: 180338 | M18: 207366 | O18: 27028 | P18: 184459 | Q18: 211487 | S18: 31086 | T18: 186253 | U18: 217339
A19: S | B19: C | C19: 25207 | D19: 162980 | E19: 188187 | G19: 25207 | H19: 164638 | I19: 189845 | K19: 25207 | L19: 167059 | M19: 192266 | O19: 25207 | P19: 170876 | Q19: 196083 | S19: 27028 | T19: 172944 | U19: 199972
B20: B | C20: 25207 | D20: 150726 | E20: 175933 | G20: 25207 | H20: 154774 | I20: 179981 | K20: 25207 | L20: 157823 | M20: 183030 | O20: 25207 | P20: 161530 | Q20: 186737 | S20: 25207 | T20: 162851 | U20: 188058
B21: A | C21: 22003 | D21: 139297 | E21: 161300 | G21: 22003 | H21: 146197 | I21: 168200 | K21: 22003 | L21: 146487 | M21: 168490 | O21: 22003 | P21: 150843 | Q21: 172846 | S21: 25158 | T21: 150430 | U21: 175588
A22: R | B22: C | C22: 22003 | D22: 128514 | E22: 150517 | G22: 22003 | H22: 131156 | I22: 153159 | K22: 22003 | L22: 133843 | M22: 155846 | O22: 22003 | P22: 137343 | Q22: 159346 | S22: 22003 | T22: 139297 | U22: 161300
B23: B | C23: 22003 | D23: 121730 | E23: 143733 | G23: 22003 | H23: 123395 | I23: 145398 | K23: 22003 | L23: 125082 | M23: 147085 | O23: 22003 | P23: 126788 | Q23: 148791 | S23: 22003 | T23: 128514 | U23: 150517
B24: A | C24: 20713 | D24: 109228 | E24: 129941 | G24: 20713 | H24: 112430 | I24: 133143 | K24: 20713 | L24: 116626 | M24: 137339 | O24: 20713 | P24: 119787 | Q24: 140500 | S24: 22003 | T24: 121730 | U24: 143733
A25: Q | B25: C | C25: 20713 | D25: 99106 | E25: 119819 | G25: 20713 | H25: 101929 | I25: 122642 | K25: 20713 | L25: 104316 | M25: 125029 | O25: 20713 | P25: 105621 | Q25: 126334 | S25: 20713 | T25: 109228 | U25: 129941
B26: B | C26: 19530 | D26: 90177 | E26: 109707 | G26: 19530 | H26: 92812 | I26: 112342 | K26: 19530 | L26: 95058 | M26: 114588 | O26: 19530 | P26: 95906 | Q26: 115436 | S26: 20713 | T26: 99106 | U26: 119819
B27: A | C27: 19530 | D27: 78005 | E27: 97535 | G27: 19530 | H27: 82567 | I27: 102097 | K27: 19530 | L27: 83880 | M27: 103410 | O27: 19530 | P27: 86983 | Q27: 106513 | S27: 19530 | T27: 90177 | U27: 109707
A28: P | B28: C | C28: 17628 | D28: 72586 | E28: 90214 | G28: 17628 | H28: 74948 | I28: 92576 | K28: 17628 | L28: 76569 | M28: 94197 | O28: 17628 | P28: 78221 | Q28: 95849 | S28: 19530 | T28: 78005 | U28: 97535
B29: B | C29: 15831 | D29: 63070 | E29: 78901 | G29: 15831 | H29: 68685 | I29: 84516 | K29: 15831 | L29: 70062 | M29: 85893 | O29: 15831 | P29: 71910 | Q29: 87741 | S29: 17628 | T29: 72586 | U29: 90214
B30: A | C30: 15216 | D30: 53554 | E30: 68770 | G30: 15216 | H30: 58459 | I30: 73675 | K30: 15216 | L30: 60782 | M30: 75998 | O30: 15216 | P30: 61756 | Q30: 76972 | S30: 15831 | T30: 63070 | U30: 78901
A31: N | B31: C | C31: 15160 | D31: 48749 | E31: 63909 | G31: 15160 | H31: 49963 | I31: 65123 | K31: 15160 | L31: 51199 | M31: 66359 | O31: 15160 | P31: 52393 | Q31: 67553 | S31: 15160 | T31: 53610 | U31: 68770
B32: B | C32: 13739 | D32: 45624 | E32: 59363 | G32: 13739 | H32: 46723 | I32: 60462 | K32: 13739 | L32: 47837 | M32: 61576 | O32: 13739 | P32: 48988 | Q32: 62727 | S32: 15160 | T32: 48749 | U32: 63909
B33: A | C33: 13739 | D33: 41425 | E33: 55164 | G33: 13739 | H33: 42447 | I33: 56186 | K33: 13739 | L33: 43485 | M33: 57224 | O33: 13739 | P33: 44546 | Q33: 58285 | S33: 13739 | T33: 45624 | U33: 59363
A34: M | B34: C | C34: 11931 | D34: 38685 | E34: 50616 | G34: 11931 | H34: 39823 | I34: 51754 | K34: 11931 | L34: 40934 | M34: 52865 | O34: 11931 | P34: 42071 | Q34: 54002 | S34: 13739 | T34: 41425 | U34: 55164
B35: B | C35: 11223 | D35: 35366 | E35: 46589 | G35: 11223 | H35: 36256 | I35: 47479 | K35: 11223 | L35: 36831 | M35: 48054 | O35: 11223 | P35: 38236 | Q35: 49459 | S35: 11931 | T35: 38685 | U35: 50616
B36: A | C36: 11203 | D36: 31285 | E36: 42488 | G36: 11203 | H36: 33124 | I36: 44327 | K36: 11203 | L36: 33974 | M36: 45177 | O36: 11203 | P36: 34667 | Q36: 45870 | S36: 11223 | T36: 35366 | U36: 46589
A37: L | B37: C | C37: 10736 | D37: 26693 | E37: 37429 | G37: 10736 | H37: 27682 | I37: 38418 | K37: 10736 | L37: 28729 | M37: 39465 | O37: 10736 | P37: 29871 | Q37: 40607 | S37: 11203 | T37: 31285 | U37: 42488
B38: B | C38: 10736 | D38: 22879 | E38: 33615 | G38: 10736 | H38: 23816 | I38: 34552 | K38: 10736 | L38: 24754 | M38: 35490 | O38: 10736 | P38: 25714 | Q38: 36450 | S38: 10736 | T38: 26693 | U38: 37429
B39: A | C39: 10507 | D39: 21979 | E39: 32486 | G39: 10507 | H39: 22010 | I39: 32517 | K39: 10736 | L39: 22477 | M39: 33213 | O39: 10736 | P39: 22706 | Q39: 33442 | S39: 10736 | T39: 22879 | U39: 33615
A40: K | B40: C | C40: 10507 | D40: 20170 | E40: 30677 | G40: 10507 | H40: 20801 | I40: 31308 | K40: 10507 | L40: 21148 | M40: 31655 | O40: 10507 | P40: 21805 | Q40: 32312 | S40: 10507 | T40: 21979 | U40: 32486
B41: B | C41: 9832 | D41: 18544 | E41: 28376 | G41: 9832 | H41: 19089 | I41: 28921 | K41: 9832 | L41: 19648 | M41: 29480 | O41: 9832 | P41: 20218 | Q41: 30050 | S41: 10507 | T41: 20170 | U41: 30677
B42: A | C42: 9621 | D42: 16853 | E42: 26474 | G42: 9621 | H42: 17203 | I42: 26824 | K42: 9621 | L42: 17691 | M42: 27312 | O42: 9621 | P42: 18216 | Q42: 27837 | S42: 9832 | T42: 18544 | U42: 28376
A43: J | B43: C | C43: 9465 | D43: 15105 | E43: 24570 | G43: 9465 | H43: 15573 | I43: 25038 | K43: 9465 | L43: 16050 | M43: 25515 | O43: 9465 | P43: 16533 | Q43: 25998 | S43: 9621 | T43: 16853 | U43: 26474
B44: B | C44: 9465 | D44: 13134 | E44: 22599 | G44: 9465 | H44: 13742 | I44: 23207 | K44: 9465 | L44: 14190 | M44: 23655 | O44: 9465 | P44: 14644 | Q44: 24109 | S44: 9465 | T44: 15105 | U44: 24570
B45: A | C45: 9302 | D45: 10412 | E45: 19714 | G45: 9302 | H45: 11045 | I45: 20347 | K45: 9302 | L45: 11754 | M45: 21056 | O45: 9302 | P45: 12511 | Q45: 21813 | S45: 9465 | T45: 13134 | U45: 22599
A46: H | B46: C | C46: 9102 | D46: 8582 | E46: 17684 | G46: 9102 | H46: 9208 | I46: 18310 | K46: 9102 | L46: 9738 | M46: 18840 | O46: 9102 | P46: 10187 | Q46: 19289 | S46: 9302 | T46: 10412 | U46: 19714
B47: B | C47: 8972 | D47: 6454 | E47: 15426 | G47: 8972 | H47: 6856 | I47: 15828 | K47: 8972 | L47: 7277 | M47: 16249 | O47: 8972 | P47: 7977 | Q47: 16949 | S47: 9102 | T47: 8582 | U47: 17684
B48: A | C48: 8972 | D48: 4271 | E48: 13243 | G48: 8972 | H48: 4827 | I48: 13799 | K48: 8972 | L48: 5408 | M48: 14380 | O48: 8972 | P48: 5897 | Q48: 14869 | S48: 8972 | T48: 6454 | U48: 15426
A49: G | B49: C | C49: 8854 | D49: 3321 | E49: 12175 | G49: 8854 | H49: 3541 | I49: 12395 | K49: 8853 | L49: 3813 | M49: 12666 | O49: 8854 | P49: 4090 | Q49: 12944 | S49: 8972 | T49: 4271 | U49: 13243
B50: B | C50: 8854 | D50: 2353 | E50: 11207 | G50: 8854 | H50: 2525 | I50: 11379 | K50: 8854 | L50: 2785 | M50: 11639 | O50: 8853 | P50: 3049 | Q50: 11902 | S50: 8854 | T50: 3321 | U50: 12175
B51: A | C51: 8854 | D51: 1788 | E51: 10642 | G51: 8854 | H51: 1926 | I51: 10780 | K51: 8854 | L51: 2066 | M51: 10920 | O51: 8854 | P51: 2210 | Q51: 11064 | S51: 8854 | T51: 2353 | U51: 11207
A52: B | B52: F
B53: D
B54: A | E54: 0
A55: A | B55: T | E55: 0
S56: 801912 | T56: 3490394 | U56: 4292306

Sheet Tab Horizontal SPEN
S2: VIGENCIA 1° DE ENERO DE 2018
D3: SECRETARÍA EJECUTIVA
D4: DIRECCIÓN EJECUTIVA DE ADMINISTRACIÓN
D5: DIRECCIÓN DE PERSONAL | S5: Percepciones Ordinarias Mensuales en Montos Brutos
D6: TABULADOR PARA PUESTOS DE LA RAMA DEL SERVICIO PROFESIONAL ELECTORAL NACIONAL
A8: GRUPO | B8: GRADO | C8: Sueldo Base | D8: Compensación Garantizada | E8: Percepción Ordinaria | G8: Sueldo Base | H8: Compensación Garantizada | I8: Percepción Ordinaria | K8: Sueldo Base | L8: Compensación Garantizada | M8: Percepción Ordinaria | O8: Sueldo Base | P8: Compensación Garantizada | Q8: Percepción Ordinaria | S8: Sueldo Base | T8: Compensación Garantizada | U8: Percepción Ordinaria
C9: SERIE 1 | G9: SERIE 2 | K9: SERIE 3 | O9: SERIE 4 | S9: SERIE 5
A10: S | B10: C | C10: 25207 | D10: 162980 | E10: 188187 | G10: 25207 | H10: 164638 | I10: 189845 | K10: 25207 | L10: 167059 | M10: 192266 | O10: 25207 | P10: 170876 | Q10: 196083 | S10: 27028 | T10: 172944 | U10: 199972
B11: B | C11: 25207 | D11: 150726 | E11: 175933 | G11: 25207 | H11: 154774 | I11: 179981 | K11: 25207 | L11: 157823 | M11: 183030 | O11: 25207 | P11: 161530 | Q11: 186737 | S11: 25207 | T11: 162851 | U11: 188058
B12: A | C12: 22003 | D12: 139297 | E12: 161300 | G12: 22003 | H12: 146197 | I12: 168200 | K12: 22003 | L12: 146487 | M12: 168490 | O12: 22003 | P12: 150843 | Q12: 172846 | S12: 25158 | T12: 150430 | U12: 175588
A13: R | B13: C | C13: 22003 | D13: 128514 | E13: 150517 | G13: 22003 | H13: 131156 | I13: 153159 | K13: 22003 | L13: 133843 | M13: 155846 | O13: 22003 | P13: 137343 | Q13: 159346 | S13: 22003 | T13: 139297 | U13: 161300
B14: B | C14: 22003 | D14: 121730 | E14: 143733 | G14: 22003 | H14: 123395 | I14: 145398 | K14: 22003 | L14: 125082 | M14: 147085 | O14: 22003 | P14: 126788 | Q14: 148791 | S14: 22003 | T14: 128514 | U14: 150517
B15: A | C15: 20713 | D15: 109228 | E15: 129941 | G15: 20713 | H15: 112430 | I15: 133143 | K15: 20713 | L15: 116626 | M15: 137339 | O15: 20713 | P15: 119787 | Q15: 140500 | S15: 22003 | T15: 121730 | U15: 143733
A16: Q | B16: C | C16: 20713 | D16: 99106 | E16: 119819 | G16: 20713 | H16: 101929 | I16: 122642 | K16: 20713 | L16: 104316 | M16: 125029 | O16: 20713 | P16: 105621 | Q16: 126334 | S16: 20713 | T16: 109228 | U16: 129941
B17: B | C17: 19530 | D17: 90177 | E17: 109707 | G17: 19530 | H17: 92812 | I17: 112342 | K17: 19530 | L17: 95058 | M17: 114588 | O17: 19530 | P17: 95906 | Q17: 115436 | S17: 20713 | T17: 99106 | U17: 119819
B18: A | C18: 19530 | D18: 78005 | E18: 97535 | G18: 19530 | H18: 82567 | I18: 102097 | K18: 19530 | L18: 83880 | M18: 103410 | O18: 19530 | P18: 86983 | Q18: 106513 | S18: 19530 | T18: 90177 | U18: 109707
A19: P | B19: C | C19: 17628 | D19: 72586 | E19: 90214 | G19: 17628 | H19: 74948 | I19: 92576 | K19: 17628 | L19: 76569 | M19: 94197 | O19: 17628 | P19: 78221 | Q19: 95849 | S19: 19530 | T19: 78005 | U19: 97535
B20: B | C20: 15831 | D20: 63070 | E20: 78901 | G20: 15831 | H20: 68685 | I20: 84516 | K20: 15831 | L20: 70062 | M20: 85893 | O20: 15831 | P20: 71910 | Q20: 87741 | S20: 17628 | T20: 72586 | U20: 90214
B21: A | C21: 15216 | D21: 53554 | E21: 68770 | G21: 15216 | H21: 58459 | I21: 73675 | K21: 15216 | L21: 60782 | M21: 75998 | O21: 15216 | P21: 61756 | Q21: 76972 | S21: 15831 | T21: 63070 | U21: 78901
A22: N | B22: C | C22: 15160 | D22: 48749 | E22: 63909 | G22: 15160 | H22: 49963 | I22: 65123 | K22: 15160 | L22: 51199 | M22: 66359 | O22: 15160 | P22: 52393 | Q22: 67553 | S22: 15160 | T22: 53610 | U22: 68770
B23: B | C23: 13739 | D23: 45624 | E23: 59363 | G23: 13739 | H23: 46723 | I23: 60462 | K23: 13739 | L23: 47837 | M23: 61576 | O23: 13739 | P23: 48988 | Q23: 62727 | S23: 15160 | T23: 48749 | U23: 63909
B24: A | C24: 13739 | D24: 41425 | E24: 55164 | G24: 13739 | H24: 42447 | I24: 56186 | K24: 13739 | L24: 43485 | M24: 57224 | O24: 13739 | P24: 44546 | Q24: 58285 | S24: 13739 | T24: 45624 | U24: 59363
A25: M | B25: C | C25: 11931 | D25: 38685 | E25: 50616 | G25: 11931 | H25: 39823 | I25: 51754 | K25: 11931 | L25: 40934 | M25: 52865 | O25: 11931 | P25: 42071 | Q25: 54002 | S25: 13739 | T25: 41425 | U25: 55164
B26: B | C26: 11223 | D26: 35366 | E26: 46589 | G26: 11223 | H26: 36256 | I26: 47479 | K26: 11223 | L26: 36831 | M26: 48054 | O26: 11223 | P26: 38236 | Q26: 49459 | S26: 11931 | T26: 38685 | U26: 50616
B27: A | C27: 11203 | D27: 31285 | E27: 42488 | G27: 11203 | H27: 33124 | I27: 44327 | K27: 11203 | L27: 33974 | M27: 45177 | O27: 11203 | P27: 34667 | Q27: 45870 | S27: 11223 | T27: 35366 | U27: 46589
A28: L | B28: C | C28: 10736 | D28: 26693 | E28: 37429 | G28: 10736 | H28: 27682 | I28: 38418 | K28: 10736 | L28: 28729 | M28: 39465 | O28: 10736 | P28: 29871 | Q28: 40607 | S28: 11203 | T28: 31285 | U28: 42488
B29: B | C29: 10736 | D29: 22879 | E29: 33615 | G29: 10736 | H29: 23816 | I29: 34552 | K29: 10736 | L29: 24754 | M29: 35490 | O29: 10736 | P29: 25714 | Q29: 36450 | S29: 10736 | T29: 26693 | U29: 37429
B30: A | C30: 10507 | D30: 21979 | E30: 32486 | G30: 10507 | H30: 22010 | I30: 32517 | K30: 10736 | L30: 22477 | M30: 33213 | O30: 10736 | P30: 22706 | Q30: 33442 | S30: 10736 | T30: 22879 | U30: 33615
A31: K | B31: C | C31: 10507 | D31: 20170 | E31: 30677 | G31: 10507 | H31: 20801 | I31: 31308 | K31: 10507 | L31: 21148 | M31: 31655 | O31: 10507 | P31: 21805 | Q31: 32312 | S31: 10507 | T31: 21979 | U31: 32486
B32: B | C32: 9832 | D32: 18544 | E32: 28376 | G32: 9832 | H32: 19089 | I32: 28921 | K32: 9832 | L32: 19648 | M32: 29480 | O32: 9832 | P32: 20218 | Q32: 30050 | S32: 10507 | T32: 20170 | U32: 30677
B33: A | C33: 9621 | D33: 16853 | E33: 26474 | G33: 9621 | H33: 17203 | I33: 26824 | K33: 9621 | L33: 17691 | M33: 27312 | O33: 9621 | P33: 18216 | Q33: 27837 | S33: 9832 | T33: 18544 | U33: 28376
A34: J | B34: C | C34: 9465 | D34: 15105 | E34: 24570 | G34: 9465 | H34: 15573 | I34: 25038 | K34: 9465 | L34: 16050 | M34: 25515 | O34: 9465 | P34: 16533 | Q34: 25998 | S34: 9621 | T34: 16853 | U34: 26474
B35: B | C35: 9465 | D35: 13134 | E35: 22599 | G35: 9465 | H35: 13742 | I35: 23207 | K35: 9465 | L35: 14190 | M35: 23655 | O35: 9465 | P35: 14644 | Q35: 24109 | S35: 9465 | T35: 15105 | U35: 24570
B36: A | C36: 9302 | D36: 10412 | E36: 19714 | G36: 9302 | H36: 11045 | I36: 20347 | K36: 9302 | L36: 11754 | M36: 21056 | O36: 9302 | P36: 12511 | Q36: 21813 | S36: 9465 | T36: 13134 | U36: 22599
A37: H | B37: C | C37: 9102 | D37: 8582 | E37: 17684 | G37: 9102 | H37: 9208 | I37: 18310 | K37: 9102 | L37: 9738 | M37: 18840 | O37: 9102 | P37: 10187 | Q37: 19289 | S37: 9302 | T37: 10412 | U37: 19714
B38: B | C38: 8972 | D38: 6454 | E38: 15426 | G38: 8972 | H38: 6856 | I38: 15828 | K38: 8972 | L38: 7277 | M38: 16249 | O38: 8972 | P38: 7977 | Q38: 16949 | S38: 9102 | T38: 8582 | U38: 17684
B39: A | C39: 8972 | D39: 4271 | E39: 13243 | G39: 8972 | H39: 4827 | I39: 13799 | K39: 8972 | L39: 5408 | M39: 14380 | O39: 8972 | P39: 5897 | Q39: 14869 | S39: 8972 | T39: 6454 | U39: 15426
A40: G | B40: C | C40: 8854 | D40: 3321 | E40: 12175 | G40: 8854 | H40: 3541 | I40: 12395 | K40: 8853 | L40: 3813 | M40: 12666 | O40: 8854 | P40: 4090 | Q40: 12944 | S40: 8972 | T40: 4271 | U40: 13243
B41: B | C41: 8854 | D41: 2353 | E41: 11207 | G41: 8854 | H41: 2525 | I41: 11379 | K41: 8854 | L41: 2785 | M41: 11639 | O41: 8853 | P41: 3049 | Q41: 11902 | S41: 8854 | T41: 3321 | U41: 12175
B42: A | C42: 8854 | D42: 1788 | E42: 10642 | G42: 8854 | H42: 1926 | I42: 10780 | K42: 8854 | L42: 2066 | M42: 10920 | O42: 8854 | P42: 2210 | Q42: 11064 | S42: 8854 | T42: 2353 | U42: 11207
A43: B | B43: F
B44: D
B45: A | E45: 0
A46: A | B46: T | E46: 0
S47: 484427 | T47: 1873432 | U47: 2357859

Sheet HP
A2: DIRECCIÓN EJECUTIVA DE ADMINISTRACIÓN
A3: TABULADOR DE REMUNERACIONES PARA LAS CONTRATACIONES BAJO EL RÉGIMEN DE HONORARIOS PERMANENTES
V4: VIGENCIA 1° DE ENERO DE 2018
V7: Percepciones Ordinarias Mensuales en Montos Brutos
A10: Nivel - Ámbito de Actuación | B10: Nivel | C10: Honorarios | D10: Complemento | E10: Remuneración Mensual Bruta | F10: Nivel | G10: Honorarios | H10: Complemento | I10: Remuneración Mensual Bruta | J10: Nivel | K10: Honorarios | L10: Complemento | M10: Remuneración Mensual Bruta | N10: Nivel | O10: Honorarios | P10: Complemento | Q10: Remuneración Mensual Bruta | R10: Nivel | S10: Honorarios | T10: Complemento | U10: Remuneración Mensual Bruta | V10: Nivel | W10: Honorarios | X10: Complemento | Y10: Remuneración Mensual Bruta
B11: Rango 1 | F11: Rango 2 | J11: Rango 3 | N11: Rango 4 | R11: Rango 5 | V11: Rango 6
A13: Administrativo | B13: 2701 | C13: 7255 | D13: 981 | E13: =C13+D13 -> 8236 | F13: 2703 | G13: 7255 | H13: 1450 | I13: =G13+H13 -> 8705 | J13: 2704 | K13: 7255 | L13: 1588 | M13: =K13+L13 -> 8843 | N13: 2705 | O13: 7394 | P13: 1610 | Q13: =O13+P13 -> 9004 | R13: 2502 | S13: 7394 | T13: 1727 | U13: =S13+T13 -> 9121 | V13: 2706 | W13: 7394 | X13: 1984 | Y13: =W13+X13 -> 9378
B14: 2707 | C14: 7675 | D14: 2480 | E14: 10155 | F14: 2708 | G14: 7675 | H14: 2827 | I14: 10502 | J14: 2709 | K14: 7742 | L14: 2975 | M14: 10717 | N14: 2710 | O14: 7742 | P14: 3125 | Q14: 10867 | R14: 2711 | S14: 7742 | T14: 3645 | U14: 11387 | V14: 2712 | W14: 7742 | X14: 3660 | Y14: 11402
A15: Técnico | B15: 0298 | C15: 7742 | D15: 3992 | E15: 11734 | F15: 2713 | G15: 7742 | H15: 4315 | I15: =G15+H15 -> 12057 | J15: 2714 | K15: 7868 | L15: 4734 | M15: 12602 | N15: 2715 | O15: 7868 | P15: 5526 | Q15: 13394 | R15: 0292 | S15: 7868 | T15: 5625 | U15: 13493 | V15: 2716 | W15: 7868 | X15: 6117 | Y15: 13985
B16: 2717 | C16: 7868 | D16: 6234 | E16: 14102 | F16: 2719 | G16: 7868 | H16: 6300 | I16: =G16+H16 -> 14168 | J16: 2718 | K16: 7868 | L16: 6535 | M16: 14403 | N16: 2901 | O16: 7868 | P16: 8674 | Q16: 16542 | R16: 2720 | S16: 7868 | T16: 8935 | U16: 16803 | V16: 0285 | W16: 7868 | X16: 9348 | Y16: 17216
B17: 2794 | C17: 7868 | D17: 9951 | E17: 17819 | F17: 2727 | G17: 7990 | H17: 9915 | I17: 17905 | J17: 2721 | K17: 8110 | L17: 11125 | M17: 19235 | N17: 2722 | O17: 8110 | P17: 11870 | Q17: 19980 | R17: 2795 | S17: 8110 | T17: 13119 | U17: 21229 | V17: 2784 | W17: 8110 | X17: 13203 | Y17: 21313
A18: Profesional | B18: 2728 | C18: 8110 | D18: 13413 | E18: 21523 | F18: 2785 | G18: 8110 | H18: 14296 | I18: 22406 | J18: 2902 | K18: 8136 | L18: 15089 | M18: 23225 | N18: 2803 | O18: 8136 | P18: 15392 | Q18: 23528 | R18: 2724 | S18: 8136 | T18: 16206 | U18: 24342 | V18: 2723 | W18: 8226 | X18: 16516 | Y18: 24742
B19: 2725 | C19: 8226 | D19: 17416 | E19: 25642 | F19: 2729 | G19: 8226 | H19: 17457 | I19: 25683 | J19: 2804 | K19: 8312 | L19: 17962 | M19: 26274 | N19: 2726 | O19: 8312 | P19: 18424 | Q19: 26736 | R19: 2903 | S19: 8312 | T19: 19389 | U19: 27701 | V19: 2809 | W19: 8312 | X19: 21882 | Y19: 30194
A20: Supervisión | B20: 2851 | C20: 8312 | D20: 22698 | E20: 31010 | F20: 2805 | G20: 8312 | H20: 22831 | I20: 31143 | J20: 2847 | K20: 8312 | L20: 23774 | M20: 32086 | N20: 2810 | O20: 8312 | P20: 23914 | Q20: 32226 | R20: 2811 | S20: 8312 | T20: 24060 | U20: 32372 | V20: 2904 | W20: 8538 | X20: 24453 | Y20: 32991
B21: 2806 | C21: 8538 | D21: 25796 | E21: 34334 | F21: 2841 | G21: 8538 | H21: 26933 | I21: 35471 | J21: 2807 | K21: 8538 | L21: 27056 | M21: 35594 | N21: 2842 | O21: 8538 | P21: 27466 | Q21: 36004 | R21: 0284 | S21: 8538 | T21: 28546 | U21: 37084 | V21: 2905 | W21: 8538 | X21: 29357 | Y21: 37895
B22: 2812 | C22: 9387 | D22: 29291 | E22: 38678 | F22: 2813 | G22: 9387 | H22: 29525 | I22: 38912 | J22: 2906 | K22: 9387 | L22: 29832 | M22: 39219 | N22: 2808 | O22: 9387 | P22: 30185 | Q22: 39572 | R22: 2836 | S22: 9387 | T22: 32577 | U22: 41964 | V22: 2910 | W22: 9387 | X22: 39206 | Y22: 48593
B23: 2911 | C23: 9387 | D23: 47806 | E23: 57193 | F23: 3001 | G23: 9387 | H23: 50620 | I23: 60007 | J23: 3002 | K23: 9387 | L23: 52968 | M23: 62355 | N23: 3003 | O23: 9387 | P23: 54071 | Q23: 63458 | R23: 2908 | S23: 14721 | T23: 55375 | U23: 70096 | V23: 2939 | W23: 14721 | X23: 58325 | Y23: 73046
A24: Alto Nivel / Alta Supervisión | B24: 2937 | C24: 14721 | D24: 63660 | E24: 78381 | F24: 2938 | G24: 14721 | H24: 66373 | I24: 81094 | J24: 2909 | K24: 14721 | L24: 69087 | M24: 83808 | N24: 2942 | O24: 14721 | P24: 71802 | Q24: 86523 | R24: 2940 | S24: 14721 | T24: 74515 | U24: 89236 | V24: 2941 | W24: 14721 | X24: 79943 | Y24: 94664
B25: 3201 | C25: 14940 | D25: 82114 | E25: 97054 | F25: 3016 | G25: 14940 | H25: 87865 | I25: 102805 | J25: 3017 | K25: 14940 | L25: 90581 | M25: 105521 | N25: 3018 | O25: 14940 | P25: 96006 | Q25: 110946 | R25: 3019 | S25: 16830 | T25: 96832 | U25: 113662 | V25: 3012 | W25: 16830 | X25: 97759 | Y25: 114589
B26: 3020 | C26: 16830 | D26: 99547 | E26: 116377 | F26: 3021 | G26: 16830 | H26: 102259 | I26: 119089 | J26: 3010 | K26: 16830 | L26: 103986 | M26: 120816 | N26: 3022 | O26: 16830 | P26: 104973 | Q26: 121803 | R26: 3008 | S26: 16830 | T26: 106948 | U26: 123778 | V26: 3014 | W26: 16830 | X26: 116314 | Y26: 133144
A29: Nivel - Ámbito de Actuación | B29: Nivel | C29: Honorarios | D29: Complemento | E29: Remuneración Mensual Bruta | F29: Nivel | G29: Honorarios | H29: Complemento | I29: Remuneración Mensual Bruta | J29: Nivel | K29: Honorarios | L29: Complemento | M29: Remuneración Mensual Bruta | N29: Nivel | O29: Honorarios | P29: Complemento | Q29: Remuneración Mensual Bruta | R29: Nivel | S29: Honorarios | T29: Complemento | U29: Remuneración Mensual Bruta | V29: Nivel | W29: Honorarios | X29: Complemento | Y29: Remuneración Mensual Bruta
B30: Rango 1 | F30: Rango 2 | J30: Rango 3 | N30: Rango 4 | R30: Rango 5 | V30: Rango 6
A32: ARPP | B32: 0302 | C32: 8018 | D32: 22934 | E32: =C32+D32 -> 30952 | F32: 0303 | G32: 7848 | H32: 14556 | I32: =G32+H32 -> 22404 | J32: 0304 | K32: 7823 | L32: 10732 | M32: =K32+L32 -> 18555 | N32: 0305 | O32: 7468 | P32: 4162 | Q32: =O32+P32 -> 11630
